[Event "Titled Tuesday Blitz July 18 Late 2023"]
[White "Lopez Idarraga, Daniel Eduardo"]
[Black "Novikov, Evgenij"]
[WhiteFideId "4405501"]
[BlackFideId "4125380"]
[WhiteElo "2304"]
[BlackElo "2488"]
[Result "0-1"]
[Round "2"]
[TimeControl "180+2"]
[Date "2023.07.18"]
[WhiteClock "0:01:29"]
[BlackClock "0:00:23"]
[Board "149"]

1. d4 {[%clk 0:03:00]}  Nf6 {[%clk 0:02:59]} 2. Bf4 {[%clk 0:03:01]}  g6 {[%clk 0:02:58]} 3. e3 {[%clk 0:03:01]}  Bg7 {[%clk 0:02:59]} 4. Nf3 {[%clk 0:03:02]}  O-O {[%clk 0:02:59]} 5. Be2 {[%clk 0:03:03]}  d6 {[%clk 0:02:59]} 6. O-O {[%clk 0:03:03]}  Nh5 {[%clk 0:02:58]} 7. Bg5 {[%clk 0:03:03]}  h6 {[%clk 0:02:57]} 8. Bh4 {[%clk 0:03:03]}  c6 {[%clk 0:02:52]} 9. Nfd2 {[%clk 0:03:03]}  Nf6 {[%clk 0:02:51]} 10. c3 {[%clk 0:03:03]}  Qc7 {[%clk 0:02:46]} 11. a4 {[%clk 0:03:02]}  a5 {[%clk 0:02:44]} 12. Na3 {[%clk 0:03:02]}  Nbd7 {[%clk 0:02:33]} 13. e4 {[%clk 0:02:58]}  e5 {[%clk 0:02:23]} 14. dxe5 {[%clk 0:02:58]}  dxe5 {[%clk 0:02:12]} 15. Nac4 {[%clk 0:02:49]}  b6 {[%clk 0:02:07]} 16. Re1 {[%clk 0:02:44]}  Nc5 {[%clk 0:01:53]} 17. Bf1 {[%clk 0:02:43]}  Be6 {[%clk 0:01:37]} 18. Qf3 {[%clk 0:02:40]}  Nh5 {[%clk 0:01:29]} 19. Rad1 {[%clk 0:02:32]}  Nxa4 {[%clk 0:01:26]} 20. b4 {[%clk 0:02:22]}  Nf4 {[%clk 0:01:19]} 21. Bg3 {[%clk 0:02:16]}  g5 {[%clk 0:01:17]} 22. h3 {[%clk 0:02:14]}  axb4 {[%clk 0:01:13]} 23. cxb4 {[%clk 0:02:13]}  b5 {[%clk 0:01:10]} 24. Ne3 {[%clk 0:02:11]}  Nb2 {[%clk 0:01:07]} 25. Rb1 {[%clk 0:02:09]}  Nbd3 {[%clk 0:01:06]} 26. Red1 {[%clk 0:02:08]}  Rfd8 {[%clk 0:01:03]} 27. Nb3 {[%clk 0:02:07]}  Ra2 {[%clk 0:00:57]} 28. Bxf4 {[%clk 0:02:05]}  Nxf4 {[%clk 0:00:55]} 29. Nc5 {[%clk 0:02:03]}  Rdd2 {[%clk 0:00:50]} 30. Rxd2 {[%clk 0:02:02]}  Rxd2 {[%clk 0:00:51]} 31. Rd1 {[%clk 0:01:59]}  Rd4 {[%clk 0:00:46]} 32. Rxd4 {[%clk 0:01:55]}  exd4 {[%clk 0:00:46]} 33. Nf5 {[%clk 0:01:56]}  Bxf5 {[%clk 0:00:44]} 34. exf5 {[%clk 0:01:57]}  Nd5 {[%clk 0:00:44]} 35. Bxb5 {[%clk 0:01:45]}  Nxb4 {[%clk 0:00:40]} 36. Bc4 {[%clk 0:01:46]}  Qe5 {[%clk 0:00:34]} 37. Nd3 {[%clk 0:01:38]}  Nxd3 {[%clk 0:00:33]} 38. Qxd3 {[%clk 0:01:36]}  Bf8 {[%clk 0:00:33]} 39. g4 {[%clk 0:01:35]}  Bd6 {[%clk 0:00:32]} 40. Qb3 {[%clk 0:01:34]}  Qh2+ {[%clk 0:00:28]} 41. Kf1 {[%clk 0:01:33]}  Qh1+ {[%clk 0:00:29]} 42. Ke2 {[%clk 0:01:34]}  Qe4+ {[%clk 0:00:29]} 43. Kf1 {[%clk 0:01:34]}  Kg7 {[%clk 0:00:24]} 44. Bxf7 {[%clk 0:01:33]}  d3 {[%clk 0:00:24]} 45. Qe6 {[%clk 0:01:29]}  Qh1# {[%clk 0:00:23]} 0-1


[Site "https://www.chess.com"]

[Event "Titled Tuesday Blitz July 18 Late 2023"]
[White "CatLivesMatter"]
[Black "Kaganskiy, Gleb"]
[BlackFideId "4132025"]
[WhiteElo "2483"]
[BlackElo "2291"]
[Result "1-0"]
[Round "2"]
[TimeControl "180+2"]
[Date "2023.07.18"]
[WhiteClock "0:02:52"]
[BlackClock "0:02:25"]
[Board "152"]

1. e4 {[%clk 0:03:00]}  c6 {[%clk 0:02:59]} 2. d4 {[%clk 0:03:00]}  d5 {[%clk 0:03:00]} 3. f3 {[%clk 0:03:01]}  dxe4 {[%clk 0:02:58]} 4. fxe4 {[%clk 0:03:02]}  e5 {[%clk 0:02:58]} 5. Nf3 {[%clk 0:03:02]}  Bg4 {[%clk 0:02:51]} 6. Bc4 {[%clk 0:03:02]}  Nd7 {[%clk 0:02:49]} 7. O-O {[%clk 0:03:02]}  Bd6 {[%clk 0:02:48]} 8. c3 {[%clk 0:02:59]}  b5 {[%clk 0:02:48]} 9. Bxf7+ {[%clk 0:02:55]}  Kxf7 {[%clk 0:02:42]} 10. Nxe5+ {[%clk 0:02:54]}  Ke8 {[%clk 0:02:31]} 11. Qxg4 {[%clk 0:02:52]}  Nxe5 {[%clk 0:02:29]} 12. dxe5 {[%clk 0:02:52]}  Bxe5 {[%clk 0:02:30]} 13. Qe6+ {[%clk 0:02:52]}  Qe7 {[%clk 0:02:25]} 14. Qxc6+ {[%clk 0:02:52]} 1-0


[Site "https://www.chess.com"]

[Event "Titled Tuesday Blitz July 18 Late 2023"]
[White "Der_Balak_3Halak"]
[Black "Vujacic, Igor"]
[BlackFideId "932620"]
[WhiteElo "2483"]
[BlackElo "2288"]
[Result "0-1"]
[Round "2"]
[TimeControl "180+2"]
[Date "2023.07.18"]
[WhiteClock "0:00:00"]
[BlackClock "0:00:01"]
[Board "153"]

1. d4 {[%clk 0:02:56]}  d5 {[%clk 0:02:59]} 2. Bf4 {[%clk 0:02:55]}  e6 {[%clk 0:02:58]} 3. Nf3 {[%clk 0:02:52]}  c5 {[%clk 0:02:48]} 4. e3 {[%clk 0:02:51]}  Nc6 {[%clk 0:02:48]} 5. c3 {[%clk 0:02:49]}  Bd6 {[%clk 0:02:48]} 6. Bxd6 {[%clk 0:02:48]}  Qxd6 {[%clk 0:02:48]} 7. Nbd2 {[%clk 0:02:46]}  Nf6 {[%clk 0:02:45]} 8. Bd3 {[%clk 0:02:45]}  O-O {[%clk 0:02:43]} 9. O-O {[%clk 0:02:44]}  e5 {[%clk 0:02:43]} 10. dxc5 {[%clk 0:02:38]}  Qxc5 {[%clk 0:02:42]} 11. e4 {[%clk 0:02:38]}  Bg4 {[%clk 0:02:37]} 12. h3 {[%clk 0:02:29]}  Bh5 {[%clk 0:02:25]} 13. Re1 {[%clk 0:02:22]}  Rad8 {[%clk 0:02:21]} 14. Qc2 {[%clk 0:02:12]}  d4 {[%clk 0:01:50]} 15. cxd4 {[%clk 0:01:57]}  Qxc2 {[%clk 0:01:50]} 16. Bxc2 {[%clk 0:01:58]}  Bxf3 {[%clk 0:01:42]} 17. Nxf3 {[%clk 0:01:51]}  Nxd4 {[%clk 0:01:42]} 18. Bd1 {[%clk 0:01:21]}  Nxf3+ {[%clk 0:01:37]} 19. Bxf3 {[%clk 0:01:19]}  Rd2 {[%clk 0:01:38]} 20. b3 {[%clk 0:01:11]}  Rc8 {[%clk 0:01:07]} 21. Rac1 {[%clk 0:00:55]}  Rcc2 {[%clk 0:01:06]} 22. Rxc2 {[%clk 0:00:55]}  Rxc2 {[%clk 0:01:07]} 23. a4 {[%clk 0:00:54]}  Kf8 {[%clk 0:00:54]} 24. Bd1 {[%clk 0:00:47]}  Rd2 {[%clk 0:00:49]} 25. f3 {[%clk 0:00:38]}  Nh5 {[%clk 0:00:41]} 26. Be2 {[%clk 0:00:34]}  Nf4 {[%clk 0:00:34]} 27. Bf1 {[%clk 0:00:33]}  Rb2 {[%clk 0:00:35]} 28. g3 {[%clk 0:00:32]}  Nh5 {[%clk 0:00:36]} 29. g4 {[%clk 0:00:17]}  Nf4 {[%clk 0:00:36]} 30. Rc1 {[%clk 0:00:12]}  Rxb3 {[%clk 0:00:32]} 31. Rc8+ {[%clk 0:00:12]}  Ke7 {[%clk 0:00:31]} 32. Rc7+ {[%clk 0:00:13]}  Kf6 {[%clk 0:00:32]} 33. Rxf7+ {[%clk 0:00:12]}  Kxf7 {[%clk 0:00:30]} 34. Bc4+ {[%clk 0:00:13]}  Ke7 {[%clk 0:00:26]} 35. Bxb3 {[%clk 0:00:14]}  Nxh3+ {[%clk 0:00:26]} 36. Kf1 {[%clk 0:00:14]}  Nf4 {[%clk 0:00:27]} 37. g5 {[%clk 0:00:13]}  h6 {[%clk 0:00:26]} 38. gxh6 {[%clk 0:00:13]}  gxh6 {[%clk 0:00:27]} 39. Kf2 {[%clk 0:00:12]}  Kd6 {[%clk 0:00:27]} 40. Kg3 {[%clk 0:00:12]}  Kc5 {[%clk 0:00:25]} 41. Kg4 {[%clk 0:00:08]}  b6 {[%clk 0:00:19]} 42. Kf5 {[%clk 0:00:07]}  Kd4 {[%clk 0:00:20]} 43. Bf7 {[%clk 0:00:06]}  a6 {[%clk 0:00:14]} 44. Be8 {[%clk 0:00:05]}  h5 {[%clk 0:00:14]} 45. Kg5 {[%clk 0:00:05]}  Ke3 {[%clk 0:00:09]} 46. Kf5 {[%clk 0:00:04]}  Nd3 {[%clk 0:00:03]} 47. Bf7 {[%clk 0:00:03]}  b5 {[%clk 0:00:03]} 48. axb5 {[%clk 0:00:03]}  axb5 {[%clk 0:00:04]} 49. Bxh5 {[%clk 0:00:03]}  Kd4 {[%clk 0:00:04]} 50. Bf7 {[%clk 0:00:02]}  Nb4 {[%clk 0:00:04]} 51. Bd5 {[%clk 0:00:01]}  Nd3 {[%clk 0:00:05]} 52. Ke6 {[%clk 0:00:01]}  b4 {[%clk 0:00:03]} 53. Kd6 {[%clk 0:00:02]}  Nc5 {[%clk 0:00:02]} 54. Bf7 {[%clk 0:00:02]}  b3 {[%clk 0:00:03]} 55. Bxb3 {[%clk 0:00:01]}  Nxb3 {[%clk 0:00:04]} 56. f4 {[%clk 0:00:01]}  exf4 {[%clk 0:00:02]} 57. e5 {[%clk 0:00:02]}  f3 {[%clk 0:00:03]} 58. e6 {[%clk 0:00:03]}  f2 {[%clk 0:00:01]} 59. e7 {[%clk 0:00:03]}  f1=Q {[%clk 0:00:02]} 60. e8=Q {[%clk 0:00:04]}  Qa6+ {[%clk 0:00:02]} 61. Qc6 {[%clk 0:00:04]}  Qa3+ {[%clk 0:00:03]} 62. Kd7 {[%clk 0:00:03]}  Nc5+ {[%clk 0:00:03]} 63. Kc8 {[%clk 0:00:03]}  Qh3+ {[%clk 0:00:02]} 64. Kb8 {[%clk 0:00:00]}  Qg3+ {[%clk 0:00:01]} 0-1


[Site "https://www.chess.com"]

[Event "Titled Tuesday Blitz July 18 Late 2023"]
[White "Zampronha, Wladimir Camilo"]
[Black "Van Foreest, Machteld"]
[WhiteFideId "2103087"]
[BlackFideId "1051563"]
[WhiteElo "2271"]
[BlackElo "2474"]
[Result "0-1"]
[Round "2"]
[TimeControl "180+2"]
[Date "2023.07.18"]
[WhiteClock "0:00:27"]
[BlackClock "0:00:43"]
[Board "159"]

1. e4 {[%clk 0:03:00]}  c5 {[%clk 0:02:59]} 2. Nf3 {[%clk 0:02:59]}  e6 {[%clk 0:02:59]} 3. d4 {[%clk 0:03:00]}  cxd4 {[%clk 0:02:59]} 4. Nxd4 {[%clk 0:03:01]}  Nf6 {[%clk 0:03:00]} 5. Nc3 {[%clk 0:02:59]}  Nc6 {[%clk 0:03:00]} 6. Nxc6 {[%clk 0:02:58]}  bxc6 {[%clk 0:02:59]} 7. e5 {[%clk 0:02:58]}  Nd5 {[%clk 0:02:59]} 8. Ne4 {[%clk 0:02:56]}  Qc7 {[%clk 0:02:55]} 9. f4 {[%clk 0:02:56]}  Qb6 {[%clk 0:02:47]} 10. c4 {[%clk 0:02:56]}  Bb4+ {[%clk 0:02:33]} 11. Ke2 {[%clk 0:02:53]}  f5 {[%clk 0:02:30]} 12. exf6 {[%clk 0:02:49]}  Nxf6 {[%clk 0:02:26]} 13. Nxf6+ {[%clk 0:02:49]}  gxf6 {[%clk 0:02:26]} 14. Be3 {[%clk 0:02:49]}  Bc5 {[%clk 0:02:25]} 15. Bxc5 {[%clk 0:02:40]}  Qxc5 {[%clk 0:02:26]} 16. Kf3 {[%clk 0:02:36]}  Bb7 {[%clk 0:02:16]} 17. Qd2 {[%clk 0:02:31]}  Qh5+ {[%clk 0:02:14]} 18. Kf2 {[%clk 0:02:31]}  c5 {[%clk 0:02:13]} 19. Qe3 {[%clk 0:02:17]}  Rg8 {[%clk 0:01:59]} 20. h3 {[%clk 0:02:16]}  Qh4+ {[%clk 0:01:57]} 21. g3 {[%clk 0:02:15]}  Rxg3 {[%clk 0:01:46]} 22. Qxg3 {[%clk 0:02:14]}  Qxg3+ {[%clk 0:01:47]} 23. Kxg3 {[%clk 0:02:14]}  Bxh1 {[%clk 0:01:47]} 24. Bd3 {[%clk 0:02:13]}  Bc6 {[%clk 0:01:43]} 25. Bxh7 {[%clk 0:02:12]}  f5 {[%clk 0:01:44]} 26. Bg6+ {[%clk 0:02:10]}  Ke7 {[%clk 0:01:44]} 27. h4 {[%clk 0:02:10]}  Kf6 {[%clk 0:01:37]} 28. h5 {[%clk 0:02:10]}  Rb8 {[%clk 0:01:35]} 29. b3 {[%clk 0:02:09]}  d5 {[%clk 0:01:36]} 30. cxd5 {[%clk 0:02:09]}  exd5 {[%clk 0:01:34]} 31. Rc1 {[%clk 0:02:10]}  Rb5 {[%clk 0:01:30]} 32. Kf2 {[%clk 0:02:09]}  d4 {[%clk 0:01:27]} 33. Ke2 {[%clk 0:02:06]}  Be4 {[%clk 0:01:19]} 34. Kd2 {[%clk 0:02:04]}  d3 {[%clk 0:01:14]} 35. Be8 {[%clk 0:01:47]}  Rb8 {[%clk 0:01:13]} 36. Bd7 {[%clk 0:01:16]}  Rd8 {[%clk 0:01:12]} 37. Bb5 {[%clk 0:01:14]}  Rg8 {[%clk 0:01:10]} 38. Rxc5 {[%clk 0:01:11]}  Rg2+ {[%clk 0:01:10]} 39. Ke3 {[%clk 0:01:09]}  Re2+ {[%clk 0:00:54]} 40. Kd4 {[%clk 0:01:04]}  Rc2 {[%clk 0:00:55]} 41. Bxd3 {[%clk 0:00:46]}  Rxc5 {[%clk 0:00:49]} 42. Kxc5 {[%clk 0:00:44]}  Bxd3 {[%clk 0:00:48]} 43. a4 {[%clk 0:00:41]}  Bc2 {[%clk 0:00:44]} 44. Kb4 {[%clk 0:00:40]}  Kg7 {[%clk 0:00:44]} 45. Kc3 {[%clk 0:00:39]}  Bd1 {[%clk 0:00:43]} 46. a5 {[%clk 0:00:37]}  Kh6 {[%clk 0:00:43]} 47. b4 {[%clk 0:00:37]}  Kxh5 {[%clk 0:00:43]} 48. Kd4 {[%clk 0:00:37]}  Kg4 {[%clk 0:00:43]} 49. Ke5 {[%clk 0:00:27]}  Be2 {[%clk 0:00:43]} 0-1


[Site "https://www.chess.com"]

[Event "Titled Tuesday Blitz July 18 Late 2023"]
[White "rikchessmx"]
[Black "Roberson, Peter T"]
[BlackFideId "412384"]
[WhiteElo "2256"]
[BlackElo "2471"]
[Result "0-1"]
[Round "2"]
[TimeControl "180+2"]
[Date "2023.07.18"]
[WhiteClock "0:00:07"]
[BlackClock "0:00:17"]
[Board "163"]

1. e4 {[%clk 0:03:00]}  d6 {[%clk 0:02:50]} 2. d4 {[%clk 0:02:59]}  Nf6 {[%clk 0:02:50]} 3. Nc3 {[%clk 0:03:00]}  c6 {[%clk 0:02:51]} 4. f3 {[%clk 0:03:01]}  Qb6 {[%clk 0:02:50]} 5. Bc4 {[%clk 0:03:00]}  d5 {[%clk 0:02:44]} 6. exd5 {[%clk 0:02:53]}  cxd5 {[%clk 0:02:45]} 7. Bxd5 {[%clk 0:02:48]}  Nc6 {[%clk 0:02:40]} 8. Bxc6+ {[%clk 0:02:47]}  bxc6 {[%clk 0:02:40]} 9. Nge2 {[%clk 0:02:47]}  Ba6 {[%clk 0:02:39]} 10. b3 {[%clk 0:02:43]}  O-O-O {[%clk 0:02:39]} 11. Na4 {[%clk 0:02:40]}  Qa5+ {[%clk 0:02:26]} 12. Bd2 {[%clk 0:02:40]}  Qc7 {[%clk 0:02:10]} 13. c4 {[%clk 0:02:39]}  e5 {[%clk 0:02:10]} 14. d5 {[%clk 0:02:27]}  e4 {[%clk 0:02:05]} 15. O-O {[%clk 0:02:22]}  Bd6 {[%clk 0:02:04]} 16. g3 {[%clk 0:02:21]}  Rhe8 {[%clk 0:02:03]} 17. fxe4 {[%clk 0:02:18]}  Nxe4 {[%clk 0:02:02]} 18. Nf4 {[%clk 0:02:07]}  Bb7 {[%clk 0:01:34]} 19. Rc1 {[%clk 0:02:02]}  Kb8 {[%clk 0:01:33]} 20. c5 {[%clk 0:01:49]}  Be5 {[%clk 0:01:32]} 21. d6 {[%clk 0:01:48]}  Qd7 {[%clk 0:01:32]} 22. Ba5 {[%clk 0:01:44]}  Rc8 {[%clk 0:01:25]} 23. Qf3 {[%clk 0:01:35]}  f5 {[%clk 0:01:24]} 24. Nd3 {[%clk 0:01:32]}  Bd4+ {[%clk 0:01:23]} 25. Kg2 {[%clk 0:01:29]}  Ba6 {[%clk 0:01:24]} 26. Rfd1 {[%clk 0:01:22]}  Ng5 {[%clk 0:01:10]} 27. Qf4 {[%clk 0:01:10]}  Bf6 {[%clk 0:01:08]} 28. Nb4 {[%clk 0:01:05]}  Bb5 {[%clk 0:01:06]} 29. Bc7+ {[%clk 0:01:05]}  Ka8 {[%clk 0:01:06]} 30. Nc3 {[%clk 0:00:50]}  Bxc3 {[%clk 0:01:06]} 31. Rxc3 {[%clk 0:00:46]}  Re2+ {[%clk 0:01:05]} 32. Kh1 {[%clk 0:00:37]}  Ne4 {[%clk 0:00:57]} 33. Re3 {[%clk 0:00:33]}  Nf2+ {[%clk 0:00:53]} 34. Kg2 {[%clk 0:00:24]}  Nd3+ {[%clk 0:00:48]} 35. Rxe2 {[%clk 0:00:20]}  Nxf4+ {[%clk 0:00:48]} 36. gxf4 {[%clk 0:00:19]}  Bxe2 {[%clk 0:00:49]} 37. Re1 {[%clk 0:00:19]}  Qe6 {[%clk 0:00:43]} 38. Kf2 {[%clk 0:00:19]}  Qe4 {[%clk 0:00:34]} 39. Nxc6 {[%clk 0:00:17]}  Qf3+ {[%clk 0:00:30]} 40. Kg1 {[%clk 0:00:16]}  Bb5 {[%clk 0:00:17]} 41. d7 {[%clk 0:00:16]}  Qg4+ {[%clk 0:00:17]} 42. Kf2 {[%clk 0:00:15]}  Qh4+ {[%clk 0:00:16]} 43. Kg1 {[%clk 0:00:13]}  Qxe1+ {[%clk 0:00:15]} 44. Kg2 {[%clk 0:00:12]}  Bxc6+ {[%clk 0:00:16]} 45. Kh3 {[%clk 0:00:07]}  Bxd7 {[%clk 0:00:17]} 0-1


[Site "https://www.chess.com"]

[Event "Titled Tuesday Blitz July 18 Late 2023"]
[White "Bartel, Marta"]
[Black "Alboredo, Julia"]
[WhiteFideId "1123009"]
[BlackFideId "2124807"]
[WhiteElo "2252"]
[BlackElo "2468"]
[Result "1-0"]
[Round "2"]
[TimeControl "180+2"]
[Date "2023.07.18"]
[WhiteClock "0:00:08"]
[BlackClock "0:00:09"]
[Board "165"]

1. d4 {[%clk 0:02:47]}  Nf6 {[%clk 0:02:59]} 2. Nf3 {[%clk 0:02:44]}  g6 {[%clk 0:02:59]} 3. c4 {[%clk 0:02:44]}  Bg7 {[%clk 0:02:59]} 4. Nc3 {[%clk 0:02:45]}  d6 {[%clk 0:02:59]} 5. Bg5 {[%clk 0:02:45]}  O-O {[%clk 0:02:59]} 6. e3 {[%clk 0:02:46]}  c5 {[%clk 0:02:53]} 7. d5 {[%clk 0:02:44]}  e6 {[%clk 0:02:49]} 8. Be2 {[%clk 0:02:35]}  exd5 {[%clk 0:02:42]} 9. cxd5 {[%clk 0:02:35]}  a6 {[%clk 0:02:39]} 10. a4 {[%clk 0:02:34]}  Bg4 {[%clk 0:02:18]} 11. Nd2 {[%clk 0:02:29]}  Bxe2 {[%clk 0:02:18]} 12. Qxe2 {[%clk 0:02:30]}  h6 {[%clk 0:02:14]} 13. Bh4 {[%clk 0:02:28]}  Qc7 {[%clk 0:02:07]} 14. O-O {[%clk 0:02:27]}  Nbd7 {[%clk 0:02:07]} 15. Nc4 {[%clk 0:02:22]}  Nb6 {[%clk 0:01:44]} 16. a5 {[%clk 0:02:08]}  Nxc4 {[%clk 0:01:44]} 17. Qxc4 {[%clk 0:02:08]}  Rfe8 {[%clk 0:01:44]} 18. h3 {[%clk 0:01:32]}  Nd7 {[%clk 0:01:36]} 19. Bg3 {[%clk 0:01:27]}  Ne5 {[%clk 0:01:32]} 20. Bxe5 {[%clk 0:01:23]}  Bxe5 {[%clk 0:01:31]} 21. Rfc1 {[%clk 0:01:08]}  Qe7 {[%clk 0:01:25]} 22. Rab1 {[%clk 0:00:59]}  Rac8 {[%clk 0:01:20]} 23. Na4 {[%clk 0:00:56]}  f5 {[%clk 0:01:11]} 24. Nb6 {[%clk 0:00:56]}  Rc7 {[%clk 0:01:11]} 25. Qd3 {[%clk 0:00:53]}  Bf6 {[%clk 0:01:09]} 26. Nc4 {[%clk 0:00:42]}  Kg7 {[%clk 0:01:09]} 27. b4 {[%clk 0:00:37]}  cxb4 {[%clk 0:01:08]} 28. Rxb4 {[%clk 0:00:38]}  Qe4 {[%clk 0:01:06]} 29. Qb1 {[%clk 0:00:23]}  Rec8 {[%clk 0:00:53]} 30. Rxb7 {[%clk 0:00:22]}  Qxd5 {[%clk 0:00:38]} 31. Rxc7+ {[%clk 0:00:17]}  Rxc7 {[%clk 0:00:39]} 32. Nb6 {[%clk 0:00:17]}  Rxc1+ {[%clk 0:00:36]} 33. Qxc1 {[%clk 0:00:18]}  Qb7 {[%clk 0:00:29]} 34. Qc4 {[%clk 0:00:17]}  h5 {[%clk 0:00:27]} 35. g3 {[%clk 0:00:16]}  h4 {[%clk 0:00:27]} 36. gxh4 {[%clk 0:00:15]}  Kh6 {[%clk 0:00:21]} 37. Qg8 {[%clk 0:00:15]}  Bxh4 {[%clk 0:00:17]} 38. Qh8+ {[%clk 0:00:14]}  Qh7 {[%clk 0:00:17]} 39. Qf8+ {[%clk 0:00:13]}  Kh5 {[%clk 0:00:16]} 40. Qxd6 {[%clk 0:00:13]}  Qb7 {[%clk 0:00:15]} 41. Qf4 {[%clk 0:00:13]}  Qc6 {[%clk 0:00:13]} 42. Nc4 {[%clk 0:00:11]}  Qa4 {[%clk 0:00:12]} 43. Ne5 {[%clk 0:00:11]}  Qd1+ {[%clk 0:00:13]} 44. Kg2 {[%clk 0:00:10]}  Qe2 {[%clk 0:00:13]} 45. Nf7 {[%clk 0:00:08]}  g5 {[%clk 0:00:12]} 46. Qxf5 {[%clk 0:00:08]}  Bxf2 {[%clk 0:00:09]} 47. Qh7# {[%clk 0:00:08]} 1-0


[Site "https://www.chess.com"]

[Event "Titled Tuesday Blitz July 18 Late 2023"]
[White "WindWhistler11"]
[Black "Miguelitro69"]
[WhiteElo "2467"]
[BlackElo "2249"]
[Result "0-1"]
[Round "2"]
[TimeControl "180+2"]
[Date "2023.07.18"]
[WhiteClock "0:00:00"]
[BlackClock "0:00:09"]
[Board "166"]

1. Nf3 {[%clk 0:02:59]}  c5 {[%clk 0:02:59]} 2. g3 {[%clk 0:03:00]}  Nc6 {[%clk 0:02:59]} 3. Bg2 {[%clk 0:03:00]}  d5 {[%clk 0:03:00]} 4. d4 {[%clk 0:02:59]}  cxd4 {[%clk 0:02:59]} 5. Nxd4 {[%clk 0:02:59]}  e6 {[%clk 0:02:58]} 6. O-O {[%clk 0:02:57]}  Nf6 {[%clk 0:02:58]} 7. Nb3 {[%clk 0:02:56]}  Be7 {[%clk 0:02:56]} 8. N1d2 {[%clk 0:02:50]}  O-O {[%clk 0:02:55]} 9. Nf3 {[%clk 0:02:44]}  e5 {[%clk 0:02:53]} 10. c3 {[%clk 0:02:40]}  Bg4 {[%clk 0:02:45]} 11. Be3 {[%clk 0:02:36]}  Qd7 {[%clk 0:02:43]} 12. Re1 {[%clk 0:02:33]}  Rad8 {[%clk 0:02:39]} 13. Bc5 {[%clk 0:02:11]}  Rfe8 {[%clk 0:02:33]} 14. Bxe7 {[%clk 0:01:46]}  Qxe7 {[%clk 0:02:27]} 15. Qc1 {[%clk 0:01:45]}  h6 {[%clk 0:02:17]} 16. h3 {[%clk 0:01:42]}  Bh5 {[%clk 0:02:16]} 17. Nh4 {[%clk 0:01:40]}  d4 {[%clk 0:01:58]} 18. cxd4 {[%clk 0:01:32]}  Nxd4 {[%clk 0:01:55]} 19. Nxd4 {[%clk 0:01:25]}  exd4 {[%clk 0:01:53]} 20. Nf5 {[%clk 0:01:10]}  Qe5 {[%clk 0:01:49]} 21. e4 {[%clk 0:01:06]}  Bg6 {[%clk 0:01:44]} 22. Nh4 {[%clk 0:00:58]}  Bxe4 {[%clk 0:01:35]} 23. Nf3 {[%clk 0:00:40]}  Qd5 {[%clk 0:01:26]} 24. Qf4 {[%clk 0:00:30]}  d3 {[%clk 0:01:08]} 25. Red1 {[%clk 0:00:28]}  Nh5 {[%clk 0:00:51]} 26. Qg4 {[%clk 0:00:28]}  Nf6 {[%clk 0:00:40]} 27. Qf4 {[%clk 0:00:27]}  Re6 {[%clk 0:00:26]} 28. Rd2 {[%clk 0:00:25]}  g5 {[%clk 0:00:23]} 29. Qe3 {[%clk 0:00:24]}  Bg6 {[%clk 0:00:16]} 30. Qxa7 {[%clk 0:00:24]}  Ne4 {[%clk 0:00:16]} 31. Rdd1 {[%clk 0:00:22]}  Qf5 {[%clk 0:00:15]} 32. g4 {[%clk 0:00:20]}  Qf6 {[%clk 0:00:15]} 33. Qa5 {[%clk 0:00:18]}  Ra6 {[%clk 0:00:13]} 34. Qb4 {[%clk 0:00:15]}  Rad6 {[%clk 0:00:10]} 35. Nd2 {[%clk 0:00:08]}  Qxf2+ {[%clk 0:00:09]} 36. Kh1 {[%clk 0:00:07]}  Ng3+ {[%clk 0:00:09]} 37. Kh2 {[%clk 0:00:07]}  Ne2 {[%clk 0:00:09]} 38. Nf1 {[%clk 0:00:07]}  Qf4+ {[%clk 0:00:09]} 39. Kh1 {[%clk 0:00:00]}  Qxb4 {[%clk 0:00:09]} 0-1


[Site "https://www.chess.com"]

[Event "Titled Tuesday Blitz July 18 Late 2023"]
[White "Cardozo Munar, Carlos Eduardo"]
[Black "szachmistrz2500"]
[WhiteFideId "4409477"]
[WhiteElo "2246"]
[BlackElo "2467"]
[Result "0-1"]
[Round "2"]
[TimeControl "180+2"]
[Date "2023.07.18"]
[WhiteClock "0:00:00"]
[BlackClock "0:01:21"]
[Board "168"]

1. d4 {[%clk 0:02:47]}  Nf6 {[%clk 0:02:58]} 2. Bg5 {[%clk 0:02:47]}  e6 {[%clk 0:02:57]} 3. e4 {[%clk 0:02:47]}  h6 {[%clk 0:02:56]} 4. Bxf6 {[%clk 0:02:46]}  Qxf6 {[%clk 0:02:56]} 5. c3 {[%clk 0:02:46]}  d6 {[%clk 0:02:56]} 6. Nd2 {[%clk 0:02:42]}  e5 {[%clk 0:02:55]} 7. Ngf3 {[%clk 0:02:42]}  Nc6 {[%clk 0:02:53]} 8. Bb5 {[%clk 0:02:34]}  Bd7 {[%clk 0:02:50]} 9. d5 {[%clk 0:02:34]}  Nb8 {[%clk 0:02:48]} 10. Bxd7+ {[%clk 0:02:34]}  Nxd7 {[%clk 0:02:48]} 11. O-O {[%clk 0:02:35]}  g5 {[%clk 0:02:45]} 12. Qb3 {[%clk 0:02:34]}  Rb8 {[%clk 0:02:40]} 13. Ne1 {[%clk 0:02:15]}  Bg7 {[%clk 0:02:35]} 14. a4 {[%clk 0:01:48]}  O-O {[%clk 0:02:33]} 15. Qc2 {[%clk 0:01:48]}  Qg6 {[%clk 0:02:31]} 16. b4 {[%clk 0:01:47]}  f5 {[%clk 0:02:28]} 17. exf5 {[%clk 0:01:47]}  Rxf5 {[%clk 0:02:27]} 18. g4 {[%clk 0:01:36]}  Rf6 {[%clk 0:02:27]} 19. Qxg6 {[%clk 0:01:20]}  Rxg6 {[%clk 0:02:28]} 20. f3 {[%clk 0:01:18]}  Rf6 {[%clk 0:02:25]} 21. Ne4 {[%clk 0:01:17]}  Rf7 {[%clk 0:02:25]} 22. c4 {[%clk 0:01:17]}  Nf6 {[%clk 0:02:21]} 23. Nd3 {[%clk 0:01:13]}  Rbf8 {[%clk 0:02:18]} 24. Nxf6+ {[%clk 0:01:13]}  Rxf6 {[%clk 0:02:13]} 25. Ne1 {[%clk 0:00:40]}  e4 {[%clk 0:02:01]} 26. Ra3 {[%clk 0:00:40]}  Rf4 {[%clk 0:01:58]} 27. Ng2 {[%clk 0:00:16]}  Bd4+ {[%clk 0:01:52]} 28. Kh1 {[%clk 0:00:15]}  Rxf3 {[%clk 0:01:51]} 29. Raxf3 {[%clk 0:00:13]}  Rxf3 {[%clk 0:01:38]} 30. Re1 {[%clk 0:00:14]}  Rb3 {[%clk 0:01:34]} 31. Rxe4 {[%clk 0:00:07]}  Be5 {[%clk 0:01:33]} 32. c5 {[%clk 0:00:07]}  Rb1+ {[%clk 0:01:30]} 33. Ne1 {[%clk 0:00:06]}  Bc3 {[%clk 0:01:29]} 34. cxd6 {[%clk 0:00:06]}  cxd6 {[%clk 0:01:29]} 35. Rc4 {[%clk 0:00:04]}  Bxe1 {[%clk 0:01:27]} 36. Kg2 {[%clk 0:00:05]}  Bxb4 {[%clk 0:01:26]} 37. Rc7 {[%clk 0:00:04]}  Bc5 {[%clk 0:01:26]} 38. Kf3 {[%clk 0:00:03]}  Rb4 {[%clk 0:01:24]} 39. h3 {[%clk 0:00:03]}  a5 {[%clk 0:01:22]} 40. Ke2 {[%clk 0:00:00]}  b6 {[%clk 0:01:21]} 0-1


[Site "https://www.chess.com"]